bitfinex-derivatives/quotes_SOLF0:USTF0_20250127
["timestamp","ask_amount","ask_price","bid_price","bid_amount"]
[1738014669808,0.20955,234.3,234.26,4.2702]
[1738014670115,0.03179818,234.28,234.26,4.2702]
[1738014670507,0.03179818,234.28,234.24,0.03249431]
[1738014671004,0.03179818,234.28,234.15,3.24]
[1738014671415,0.03179818,234.28,234.1,0.6234]
[1738014671614,0.20955,234.3,234.12,16.81185334]
[1738014672212,0.03012352,234.23,234.19,0.03110078]
[1738014675107,0.03012352,234.23,234.08,16.81185334]
[1738014675308,1.396,234.26,234.04,16.81185334]
[1738014675514,1.396,234.26,234.05,4.274]
[1738014675714,1.396,234.26,234.04,16.81185334]
[1738014676018,4.2711,234.22,234.1,4.2731]
[1738014676222,0.03230471,234.18,234.14,0.02850769]
[1738014676517,0.03230471,234.18,234.08,16.81185334]
[1738014676719,0.03230471,234.18,234.14,0.02997214]
[1738014676914,1.396,234.26,234.13,16.81185334]
[1738014677114,0.02849575,234.18,234.14,0.02989094]
[1738014678418,0.02849575,234.18,234.03,10.17172004]
[1738014678717,16.81185334,234.22,233.97,16.81185334]
[1738014678912,18.20785334,234.26,234.05,16.81185334]
[1738014679314,1.396,234.26,234.1,16.81185334]
[1738014679517,0.03138458,234.18,234.13,0.03123761]
[1738014679820,0.03138458,234.18,234.0,20.05185334]
[1738014680020,16.81185334,234.21,234.0,20.05185334]
[1738014680219,4.2711,234.22,234.12,4.2727]
[1738014680521,1.4877,234.25,234.08,16.81185334]
[1738014680919,5.7581,234.25,234.08,16.81185334]
[1738014681118,0.03206479,234.19,234.14,0.03153563]
[1738014681318,0.03206479,234.19,234.18,4.2717]
[1738014681513,1.3755,234.29,234.16,16.81185334]
[1738014681717,1.4877,234.33,234.14,3.27153563]
[1738014681718,2.8733,234.33,234.2,16.81185334]
[1738014682820,0.03225717,234.27,234.23,0.03246485]
[1738014684921,0.03225717,234.27,234.07,3.24]
[1738014685121,1.3404,234.32,234.07,3.24]
[1738014685522,4.2708,234.23,234.11,4.2728]
[1738014686024,0.0306836,234.2,234.15,0.02988279]
[1738014687817,4.3020836,234.2,234.15,0.02988279]
[1738014688122,0.0306836,234.2,234.15,0.02988279]
[1738014688521,0.0306836,234.2,234.04,16.81185334]
[1738014688718,16.81185334,234.25,234.04,16.81185334]
[1738014688920,16.81185334,234.25,234.01,0.273]
[1738014688921,16.81185334,234.25,234.0,16.81185334]
[1738014689627,4.272,234.16,234.0,16.81185334]
[1738014689827,0.02873598,234.15,234.1,0.03266547]
[1738014690925,0.02873598,234.15,233.96,18.40585334]
[1738014691129,16.81185334,234.17,233.96,18.40585334]
[1738014691328,16.81185334,234.13,233.93,0.2731]
[1738014691525,16.81185334,234.13,233.92,16.81185334]
[1738014691921,16.81185334,234.13,233.91,4.2764]
[1738014691922,4.2746,234.02,233.91,4.2764]
[1738014692225,0.03003571,234.05,233.88,16.81185334]
[1738014692424,16.81185334,234.13,233.88,16.81185334]
[1738014692626,0.02774545,233.99,233.88,16.81185334]
[1738014693030,0.02799596,233.96,233.91,4.2765]
[1738014693230,1.3618,234.08,233.88,16.81185334]
[1738014693425,0.02852256,233.96,233.89,4.2769]
[1738014693625,1.4959,234.07,233.88,16.81185334]
[1738014693824,0.03116016,233.95,233.88,16.81185334]
[1738014694033,1.4959,234.07,233.88,16.81185334]
[1738014694242,0.02772298,233.94,233.92,4.2764]
[1738014694441,4.2744,234.03,233.92,4.2764]
[1738014694636,0.02847714,233.95,233.88,16.81185334]
[1738014694837,0.03185132,233.98,233.8,16.81185334]
[1738014695139,16.81185334,234.01,233.8,16.81185334]
[1738014695339,0.02985633,233.91,233.84,16.81185334]
[1738014695639,16.81185334,234.05,233.84,16.81185334]
[1738014695833,0.02791035,233.9,233.84,16.81185334]
[1738014696036,1.4411,234.04,233.84,16.81185334]
[1738014696239,0.03023322,233.89,233.8,16.81185334]
[1738014696434,4.2759,233.95,233.84,4.2778]
[1738014696635,0.03003178,233.87,233.8,16.81185334]
[1738014696831,16.81185334,234.01,233.81,0.78552524]
[1738014697239,1.3262,234.03,233.84,16.81185334]
[1738014697441,0.02696176,233.93,233.84,16.81185334]
[1738014697640,0.02696176,233.93,233.9,4.2767]
[1738014697941,1.3262,234.03,233.9,4.2767]
[1738014698139,0.02744393,233.94,233.84,16.81185334]
[1738014698340,1.3262,234.03,233.84,16.81185334]
[1738014698541,0.03003691,233.91,233.84,16.81185334]
[1738014698737,4.2756,233.97,233.85,4.2776]
[1738014698938,0.02979111,233.9,233.84,16.81185334]
[1738014699341,0.02979111,233.9,233.84,21.08965334]
[1738014699537,0.02979111,233.9,233.84,16.81185334]
[1738014701641,0.02979111,233.9,233.89,4.277]
[1738014702546,0.02979111,233.9,233.87,4.2772]
[1738014702745,0.02979111,233.9,233.84,16.81185334]
[1738014703641,0.02979111,233.9,233.8,16.81185334]
[1738014703947,0.02979111,233.9,233.76,17.08455334]
[1738014704343,4.277,233.89,233.78,4.279]
[1738014704744,0.02979111,233.9,233.76,16.81185334]
[1738014704945,1.3699,233.97,233.76,16.81185334]
[1738014705146,0.03197031,233.85,233.76,16.81185334]
[1738014707147,0.03197031,233.85,233.78,4.2789]
[1738014707346,0.03197031,233.85,233.75,38.7295937]
[1738014707749,0.03197031,233.85,233.77,4.279]
[1738014708347,0.03197031,233.85,233.75,38.7295937]
[1738014708348,0.03197031,233.85,233.75,43.0089937]
[1738014708652,0.03197031,233.85,233.75,38.7295937]
[1738014708950,4.2781,233.84,233.75,38.7295937]
[1738014709252,0.03197031,233.85,233.75,38.7295937]
[1738014709448,16.81185334,233.82,233.59,16.81185334]
[1738014709655,16.81185334,233.78,233.61,10.17172004]
[1738014709955,0.03098275,233.74,233.61,10.17172004]
[1738014710654,16.84283609,233.74,233.61,10.17172004]
[1738014711058,16.81185334,233.7,233.61,10.17172004]
[1738014711355,4.266,233.69,233.61,10.17172004]
[1738014711556,4.2812,233.66,233.61,10.17172004]
[1738014712062,0.03038344,233.68,233.61,10.17172004]
[1738014712253,4.31138344,233.68,233.61,10.17172004]
[1738014712458,0.03038344,233.68,233.61,10.17172004]
[1738014712755,4.2814,233.65,233.61,10.17172004]
[1738014712954,0.03038344,233.68,233.61,10.17172004]
[1738014713160,0.03038344,233.68,233.34,294.574]
[1738014713161,16.81185334,233.66,233.43,16.81185334]
[1738014713356,4.2826,233.59,233.47,4.2846]
[1738014713560,16.81185334,233.62,233.47,4.2846]
[1738014713760,0.02857554,233.55,233.47,4.2846]
[1738014713963,0.02857554,233.55,233.45,4.285]
[1738014714458,0.02857554,233.55,233.41,0.2783]
[1738014715262,0.02857554,233.55,233.42,4.2855]
[1738014715462,0.02857554,233.55,233.41,0.2783]
[1738014715765,0.02857554,233.55,233.39,16.81185334]
[1738014716064,16.81185334,233.54,233.35,18.48125334]
[1738014716559,0.03067652,233.49,233.35,18.48125334]
[1738014716761,0.03067652,233.49,233.39,16.81185334]
[1738014718054,0.03067652,233.49,233.39,21.09795334]
[1738014718255,0.03067652,233.49,233.39,16.81185334]
[1738014718663,0.03067652,233.49,233.47,4.2846]
[1738014718858,0.03067652,233.49,233.43,16.81185334]
[1738014719662,4.2819,233.63,233.43,16.81185334]
[1738014719857,2.8074,233.65,233.47,16.81185334]
[1738014720164,1.4437,233.65,233.47,16.81185334]
[1738014720463,1.4437,233.65,233.48,0.9792]
[1738014720961,1.4437,233.65,233.54,0.0303299]
[1738014720962,0.0272055,233.59,233.54,0.0303299]
[1738014721455,4.3098055,233.59,233.54,0.0303299]
[1738014721854,4.2828,233.57,233.54,0.0303299]
[1738014722265,0.0272055,233.59,233.54,0.0303299]
[1738014722457,4.2835,233.54,233.43,4.2853]
[1738014722654,18.17755334,233.58,233.4,1.4296]
[1738014723056,4.2832,233.55,233.4,1.4296]
[1738014723465,1.3657,233.58,233.4,1.4296]
[1738014723663,0.03096752,233.5,233.4,1.4296]
[1738014723861,0.03096752,233.5,233.43,16.81185334]
[1738014724364,0.03096752,233.5,233.49,4.2843]
[1738014724760,4.2812,233.67,233.47,16.81185334]
[1738014725065,16.81185334,233.7,233.47,16.81185334]
[1738014725066,1.366,233.69,233.48,0.9789]
[1738014725463,4.2811,233.67,233.54,4.2833]
[1738014725664,1.366,233.69,233.51,16.81185334]
[1738014725966,0.03137789,233.62,233.57,0.02976842]
[1738014726163,4.31347789,233.62,233.57,0.02976842]
[1738014726664,0.03137789,233.62,233.57,0.02976842]
[1738014729367,0.03137789,233.62,233.58,4.2826]
[1738014729869,1.538,233.71,233.57,0.02976842]
[1738014731171,0.0274574,233.66,233.57,0.02976842]
[1738014731372,0.0274574,233.66,233.6,16.81185334]
[1738014731865,0.0274574,233.66,233.58,4.2825]
[1738014732170,0.0274574,233.66,233.57,0.02976842]
[1738014732373,0.0274574,233.66,233.58,4.2826]
[1738014732563,0.0274574,233.66,233.57,0.02976842]
[1738014733970,4.2826,233.58,233.57,0.02976842]
[1738014735367,4.31376825,233.6,233.57,0.02976842]
[1738014735565,0.03136825,233.6,233.57,0.02976842]
[1738014735770,4.2826,233.58,233.57,0.02976842]
[1738014736370,4.2834,233.54,233.43,4.2854]
[1738014736575,4.3106,233.65,233.42,0.979]
[1738014736773,16.81185334,233.62,233.42,0.979]
[1738014737573,0.03289754,233.54,233.5,0.03239477]
[1738014737976,0.03289754,233.54,233.5,4.31649477]
[1738014738277,0.03289754,233.54,233.5,0.03239477]
[1738014738578,4.2837,233.53,233.5,0.03239477]
[1738014738777,1.4825,233.53,233.5,0.03239477]
[1738014738977,2.7927,233.53,233.36,16.81185334]
[1738014739678,4.2839,233.51,233.39,4.2861]
[1738014739976,2.7927,233.53,233.39,4.2861]
[1738014740171,0.02990752,233.47,233.39,4.2861]
[1738014740778,0.02990752,233.47,233.36,16.81185334]
[1738014741078,0.02990752,233.47,233.4,16.81185334]
[1738014741376,1.44,233.61,233.44,16.81185334]
[1738014741771,1.44,233.61,233.5,4.284]
[1738014742078,1.44,233.61,233.44,16.81185334]
[1738014742577,0.02983171,233.55,233.5,0.02981698]
[1738014743875,4.31313171,233.55,233.5,0.02981698]
[1738014744078,0.02983171,233.55,233.5,0.02981698]
[1738014749182,0.02983171,233.55,233.52,4.2835]
[1738014749382,0.02983171,233.55,233.5,0.02981698]
[1738014749684,0.02983171,233.55,233.53,4.2835]
[1738014749878,0.02983171,233.55,233.5,0.02981698]
[1738014750080,1.7905,233.65,233.52,16.81185334]
[1738014750783,1.7905,233.65,233.48,16.81185334]
[1738014750984,1.7905,233.65,233.45,1.7026]
[1738014751184,0.02988821,233.59,233.54,0.03071822]
[1738014753484,4.2826,233.58,233.54,0.03071822]
[1738014753685,0.02988821,233.59,233.54,0.03071822]
[1738014753887,4.31228821,233.59,233.54,0.03071822]
[1738014754784,4.2826,233.58,233.54,0.03071822]
[1738014755386,0.02988821,233.59,233.54,0.03071822]
[1738014755991,4.2832,233.55,233.54,0.03071822]
[1738014756282,0.02988821,233.59,233.42,1.329]
[1738014756487,1.3765,233.6,233.42,1.329]
[1738014756888,4.2838,233.52,233.43,4.2852]
[1738014757085,16.81185334,233.59,233.42,1.329]
[1738014757291,4.2843,233.49,233.45,0.02926175]
[1738014757682,0.02763613,233.5,233.45,0.02926175]
[1738014757886,4.2848,233.46,233.45,0.02926175]
[1738014758291,4.2852,233.44,233.35,4.2868]
[1738014758496,2.8247,233.49,233.31,16.81185334]
[1738014758999,4.2853,233.44,233.34,4.287]
[1738014759497,0.03287447,233.41,233.31,16.81185334]
[1738014759689,0.03287447,233.41,233.31,4.2875]
[1738014760088,0.03287447,233.41,233.32,4.2873]
[1738014760392,0.03287447,233.41,233.27,16.81185334]
[1738014760696,4.31857447,233.41,233.3,4.2875]
[1738014760894,0.03287447,233.41,233.27,16.81185334]
[1738014761296,4.286,233.4,233.3,4.2877]
[1738014761498,0.03287447,233.41,233.27,16.81185334]
[1738014763694,0.03287447,233.41,233.31,4.2874]
[1738014764001,0.03287447,233.41,233.27,16.81185334]
[1738014765694,4.2855,233.4,233.3,4.2873]
[1738014766288,4.286,233.39,233.29,4.2876]
[1738014766494,16.81185334,233.43,233.26,1.3561]
[1738014766690,0.02917459,233.36,233.26,1.3561]
[1738014767497,0.02917459,233.36,233.29,4.2876]
[1738014768199,0.02917459,233.36,233.26,1.3561]
[1738014769002,0.02917459,233.36,233.29,4.2875]
[1738014769196,0.02917459,233.36,233.28,16.81185334]
[1738014769498,0.02917459,233.36,233.33,4.2868]
[1738014769902,0.02917459,233.36,233.28,16.81185334]
[1738014771103,0.02917459,233.36,233.31,4.2872]
[1738014771504,0.02917459,233.36,233.28,16.81185334]
[1738014771999,1.4363,233.46,233.32,16.81185334]
[1738014772200,2.8247,233.49,233.32,16.81185334]
[1738014772396,2.8247,233.49,233.39,4.2856]
[1738014772798,2.8247,233.49,233.37,4.286]
[1738014772993,0.02919549,233.45,233.41,0.02742207]
[1738014774198,4.2852,233.42,233.41,0.02742207]
[1738014774505,0.02919549,233.45,233.28,16.81185334]
[1738014774801,16.81185334,233.47,233.29,4.2876]
[1738014774802,1.3756,233.46,233.29,4.2876]
[1738014775399,4.2857,233.4,233.3,4.2874]
[1738014775597,1.3756,233.46,233.26,1.3561]
[1738014775803,0.03133417,233.37,233.33,0.02129301]
[1738014775995,4.2857,233.4,233.33,0.02129301]
[1738014776195,0.02844479,233.37,233.33,0.02129301]
[1738014779411,0.02844479,233.37,233.35,4.2864]
[1738014779706,1.4379,233.49,233.33,0.02129301]
[1738014780004,19.59525334,233.55,233.36,16.81185334]
[1738014780308,0.23165,233.49,233.4,16.81185334]
[1738014780805,0.03046524,233.47,233.42,0.02959838]
[1738014782102,4.2845,233.46,233.42,0.02959838]
[1738014782300,0.03046524,233.47,233.42,0.02959838]
[1738014783702,4.31496524,233.47,233.42,0.02959838]
[1738014783908,0.03046524,233.47,233.42,0.02959838]
[1738014784405,16.84231858,233.47,233.24,16.81185334]
[1738014784704,0.23165,233.49,233.21,9.91437938]
[1738014784705,16.81185334,233.39,233.21,9.91437938]
[1738014784906,1.4134,233.38,233.21,9.91437938]
[1738014785102,16.81185334,233.35,233.21,9.91437938]
[1738014785307,16.81185334,233.35,233.13,38.83835053]
[1738014785308,2.7485,233.34,233.13,38.83835053]
[1738014785502,0.03251966,233.3,233.26,0.02013942]
[1738014785707,4.2877,233.29,233.18,4.2896]
[1738014785906,0.03251966,233.3,233.18,4.2896]
[1738014785907,0.03251966,233.3,233.26,0.02013942]
[1738014786104,0.02948643,233.26,233.18,4.2896]
[1738014786609,0.02948643,233.26,233.2,4.30991181]
[1738014786906,0.02948643,233.26,233.2,0.02061181]
[1738014791412,0.02948643,233.26,233.23,4.2887]
[1738014791911,1.441,233.34,233.21,1.3858]
[1738014792108,1.441,233.34,233.25,4.2883]
[1738014792309,1.4134,233.38,233.21,1.3858]
[1738014792514,4.2846,233.46,233.35,4.2865]
[1738014792813,16.81185334,233.48,233.29,1.6078]
[1738014793112,0.03019135,233.43,233.38,0.02788148]
[1738014793908,4.2854,233.41,233.38,0.02788148]
[1738014794603,0.03019135,233.43,233.38,0.02788148]
[1738014797314,0.03019135,233.43,233.4,4.2856]
[1738014797608,0.03019135,233.43,233.38,0.02788148]
[1738014798005,0.03019135,233.43,233.4,4.2856]
[1738014798212,0.03019135,233.43,233.38,0.02788148]
[1738014798413,0.23165,233.49,233.4,16.81185334]
[1738014798613,0.23165,233.49,233.38,0.02788148]
[1738014799217,4.2842,233.48,233.38,4.31378148]
[1738014799416,0.23165,233.49,233.38,0.02788148]
[1738014799612,0.03062855,233.45,233.38,0.02788148]
[1738014799814,0.03062855,233.45,233.39,4.2856]
[1738014800111,0.03062855,233.45,233.38,0.02788148]
[1738014800314,0.23165,233.49,233.42,4.2852]
[1738014800616,0.23165,233.49,233.39,16.81185334]
[1738014800813,4.2812,233.64,233.52,4.2833]
[1738014801013,2.8771,233.67,233.47,16.81185334]
[1738014801518,2.8771,233.67,233.55,0.02985715]
[1738014801519,0.03004919,233.59,233.55,0.02985715]
[1738014803321,0.03004919,233.59,233.55,4.31265715]
[1738014804013,1.4531,233.67,233.58,4.2823]
[1738014804423,16.57929334,233.76,233.55,16.81185334]
[1738014804711,1.4714,233.75,233.55,16.81185334]
[1738014805121,0.02946725,233.67,233.63,0.02887814]
[1738014807321,4.2812,233.64,233.63,0.02887814]
[1738014807612,1.3085,233.66,233.63,0.02887814]
[1738014807813,0.02946725,233.67,233.63,0.02887814]
[1738014809316,1.4714,233.75,233.64,16.81185334]
[1738014810114,5.7507,233.75,233.65,4.2809]
[1738014810324,1.4714,233.75,233.65,4.2809]
[1738014810525,1.4714,233.75,233.63,0.02887814]
[1738014810719,0.03236697,233.72,233.63,0.02887814]
[1738014811522,0.03236697,233.72,233.63,4.31017814]
[1738014811923,0.03236697,233.72,233.64,16.81185334]
[1738014812522,0.03236697,233.72,233.65,4.2808]
[1738014812724,0.03236697,233.72,233.64,16.81185334]
[1738014813020,0.03236697,233.72,233.63,0.02887814]
[1738014813927,4.31206697,233.72,233.63,0.02887814]
[1738014815023,0.03236697,233.72,233.63,4.31017814]
[1738014815228,0.03236697,233.72,233.63,0.02887814]
[1738014815420,0.03236697,233.72,233.64,16.81185334]
[1738014815829,0.03236697,233.72,233.66,4.2807]
[1738014816227,0.03236697,233.72,233.64,16.81185334]
[1738014816729,0.03236697,233.72,233.64,18.21425334]
[1738014816930,0.03236697,233.72,233.71,4.2799]
[1738014817625,1.69776,233.84,233.72,16.81185334]
[1738014818028,0.22266,233.84,233.72,16.81185334]
[1738014818731,0.02941564,233.8,233.76,0.02816616]
[1738014819733,0.02941564,233.8,233.77,4.2787]
[1738014820627,0.22266,233.84,233.76,16.8400195]
[1738014820827,0.22266,233.84,233.8,16.81185334]
[1738014821028,0.22266,233.84,233.77,1.0392]
[1738014821434,0.22266,233.84,233.76,17.4020195]
[1738014821934,0.0323055,233.82,233.76,17.4020195]
[1738014822328,0.0323055,233.82,233.78,4.2786]
[1738014823134,0.0323055,233.82,233.76,17.4020195]
[1738014823333,0.0323055,233.82,233.79,4.2784]
[1738014823932,0.0323055,233.82,233.81,4.2781]
[1738014824437,0.22266,233.84,233.83,4.2777]
[1738014824931,0.22266,233.84,233.8,16.81185334]
[1738014825127,2.8371,234.0,233.8,16.81185334]
[1738014825330,1.4633,234.0,233.85,16.81185334]
[1738014825733,0.03018635,233.95,233.9,0.02723753]
[1738014827436,0.03018635,233.95,233.91,4.2762]
[1738014827638,0.03018635,233.95,233.9,0.02723753]
[1738014827836,0.03018635,233.95,233.9,4.30343753]
[1738014828942,0.03018635,233.95,233.91,4.2762]
[1738014829130,0.03018635,233.95,233.9,0.02723753]
[1738014839339,0.03018635,233.95,233.94,4.2757]
[1738014840748,0.03018635,233.95,233.93,16.81185334]
[1738014840952,0.03018635,233.95,233.9,0.02723753]
[1738014841848,4.2759,233.93,233.9,0.02723753]
[1738014842548,2.79998635,233.95,233.9,0.02723753]
[1738014843751,4.2759,233.93,233.9,0.02723753]
[1738014844258,2.79998635,233.95,233.9,0.02723753]
[1738014846856,7.07548635,233.95,233.9,0.02723753]
[1738014847155,2.79998635,233.95,233.9,0.02723753]
[1738014847456,4.2757,233.94,233.9,0.02723753]
[1738014847652,2.79998635,233.95,233.9,0.02723753]
[1738014849451,0.03018635,233.95,233.9,4.30363753]
[1738014850056,0.03018635,233.95,233.9,0.02723753]
[1738014851646,4.2757,233.94,233.9,0.02723753]
[1738014851849,0.03018635,233.95,233.9,0.02723753]
[1738014853758,0.03018635,233.95,233.91,4.2761]
[1738014855058,0.03018635,233.95,233.9,0.02723753]
[1738014856357,0.03018635,233.95,233.93,4.2758]
[1738014856754,2.8926,234.05,233.96,4.2752]
[1738014856957,2.8926,234.05,233.97,16.81185334]
[1738014857953,0.0326344,234.03,233.99,0.02848752]
[1738014860664,0.0326344,234.03,234.01,16.81185334]
[1738014861065,0.0326344,234.03,234.02,4.2742]
[1738014861266,2.9722,234.14,234.01,16.81185334]
[1738014862065,2.9722,234.14,234.04,4.2738]
[1738014862463,0.03113073,234.11,234.07,0.03143979]
[1738014864267,4.2728,234.1,234.07,0.03143979]
[1738014864665,0.03113073,234.11,234.07,0.03143979]
[1738014864865,4.273,234.09,234.0,10.50986081]
[1738014865072,0.03113073,234.11,234.0,10.50986081]
[1738014865461,4.2729,234.1,234.0,14.78446081]
[1738014866167,4.2729,234.1,234.03,0.02825394]
[1738014867471,4.2731,234.09,234.03,0.02825394]
[1738014867978,4.2737,234.05,234.03,0.02825394]
[1738014868672,4.2744,234.01,233.92,10.50986081]
[1738014868870,10.50986081,234.09,233.93,4.2759]
[1738014869071,1.4422,234.08,233.93,4.2759]
[1738014869270,4.2742,234.02,233.93,4.2759]
[1738014869477,1.4422,234.08,233.92,10.50986081]
[1738014869677,0.02976898,234.0,233.95,0.0324552]
[1738014870079,4.30456898,234.0,233.95,0.0324552]
[1738014870579,4.2748,233.99,233.95,0.0324552]
[1738014870877,0.02976898,234.0,233.95,0.0324552]
[1738014872870,4.275,233.98,233.95,0.0324552]
[1738014873374,4.2754,233.96,233.85,10.50986081]
[1738014873572,1.3314,233.97,233.85,10.50986081]
[1738014874375,0.0300668,233.93,233.89,0.03022263]
[1738014875477,0.0300668,233.93,233.91,10.50986081]
[1738014875673,0.0300668,233.93,233.92,4.276]
[1738014875877,0.0300668,233.93,233.91,10.50986081]
[1738014878977,0.0300668,233.93,233.89,0.03022263]
[1738014880179,4.2763,233.91,233.89,0.03022263]
[1738014881077,4.2764,233.9,233.89,0.03022263]
[1738014881274,1.4296,233.92,233.79,10.50986081]
[1738014881474,10.50986081,233.89,233.77,9.85891177]
[1738014881682,10.50986081,233.86,233.7,10.50986081]
[1738014881875,10.50986081,233.83,233.67,11.94556081]
[1738014882180,4.279,233.76,233.64,20.36877258]
[1738014882376,11.90866081,233.88,233.63,38.75944632]
[1738014882377,10.50986081,233.77,233.63,38.75944632]
[1738014882569,4.2797,233.73,233.62,4.2814]
[1738014882770,1.4104,233.75,233.61,3.2506446]
[1738014883176,4.2799,233.71,233.61,3.2506446]
[1738014883381,1.4104,233.75,233.61,3.2506446]
[1738014883779,0.02758936,233.7,233.66,0.02930281]
[1738014884874,0.02758936,233.7,233.67,16.88007084]
[1738014885985,0.02758936,233.7,233.68,4.2803]
[1738014886282,2.8526,233.85,233.67,16.88007084]
[1738014886487,1.3599,233.84,233.74,4.2793]
[1738014887078,1.3599,233.84,233.71,16.88007084]
[1738014887277,1.3599,233.84,233.75,16.90914246]
[1738014887482,0.02841086,233.8,233.75,0.02907162]
[1738014890084,0.02841086,233.8,233.75,16.90914246]
[1738014890489,0.02841086,233.8,233.75,0.02907162]
[1738014892386,4.2786,233.78,233.75,0.02907162]
[1738014893182,0.02841086,233.8,233.63,16.88007084]
[1738014893378,16.88007084,233.79,233.59,16.88007084]
[1738014893585,16.88007084,233.79,233.56,9.84994525]
[1738014893783,16.88007084,233.75,233.56,9.84994525]
[1738014893984,4.2808,233.67,233.58,4.2821]
[1738014894184,1.3956,233.74,233.56,9.84994525]
[1738014894489,1.3237,233.66,233.63,0.03213145]
[1738014895581,1.3237,233.66,233.56,9.84994525]
[1738014895782,4.2819,233.61,233.56,9.84994525]
[1738014895983,1.3237,233.66,233.56,9.84994525]
[1738014896682,0.02989923,233.63,233.59,0.03032047]
[1738014899488,0.02989923,233.63,233.59,16.91039131]
[1738014899693,0.02989923,233.63,233.6,4.2819]
[1738014899995,0.02989923,233.63,233.59,16.91039131]
[1738014900193,2.8213,233.74,233.59,16.91039131]
[1738014900384,2.8194,233.85,233.69,16.88007084]
[1738014900894,1.3132,233.84,233.69,16.88007084]
[1738014901087,1.3132,233.84,233.6,2.4971]
[1738014901088,1.3132,233.84,233.64,16.88007084]
[1738014901292,0.03180087,233.79,233.76,4.279]
[1738014901793,0.03180087,233.79,233.74,0.03229946]
[1738014901992,4.276,233.93,233.79,4.2784]
[1738014902195,1.3736,233.92,233.77,16.88007084]
[1738014902695,4.2771,233.87,233.77,16.88007084]
[1738014902892,1.3736,233.92,233.72,3.22]
[1738014903085,0.03234051,233.83,233.72,3.22]
[1738014903392,0.03234051,233.83,233.79,0.02716795]
[1738014903589,4.2782,233.81,233.79,0.02716795]
[1738014903896,0.03234051,233.83,233.79,0.02716795]
[1738014905296,0.03234051,233.83,233.81,21.15807084]
[1738014905594,0.03234051,233.83,233.81,16.88007084]
[1738014905994,0.03234051,233.83,233.79,0.02716795]
[1738014910501,0.03234051,233.83,233.79,4.30556795]
[1738014910801,0.03234051,233.83,233.79,0.02716795]
[1738014913501,0.03234051,233.83,233.81,4.2779]
[1738014913701,0.03234051,233.83,233.79,0.02716795]
[1738014914305,1.3736,233.92,233.79,0.02716795]
[1738014914804,1.3736,233.92,233.8,4.2781]
[1738014915005,1.3736,233.92,233.79,0.02716795]
[1738014915206,1.3736,233.92,233.8,4.2781]
[1738014915505,0.02955936,233.88,233.8,4.2781]
[1738014915705,0.02955936,233.88,233.84,4.2775]
[1738014915906,0.02955936,233.88,233.81,16.88007084]
[1738014916307,0.02955936,233.88,233.83,4.2775]
[1738014916701,0.02955936,233.88,233.81,16.88007084]
[1738014917204,1.3037,233.99,233.85,16.88007084]
[1738014917503,1.3962,234.07,233.93,16.88007084]
[1738014917702,5.6695,234.07,233.93,16.88007084]
[1738014917900,5.6695,234.07,233.97,16.88007084]
[1738014918503,0.03037446,234.04,234.0,0.02723241]
[1738014921797,0.03037446,234.04,233.85,3.2]
[1738014922001,0.03037446,234.04,233.85,7.4773]
[1738014922207,16.88007084,234.05,233.85,7.4773]
[1738014922405,16.88007084,234.05,233.85,3.2]
[1738014922904,4.2759,233.93,233.85,3.2]
[1738014923306,16.88007084,234.05,233.87,0.02733209]
[1738014923608,16.88007084,234.05,233.85,3.2]
[1738014923811,0.02838602,233.98,233.94,0.03227175]
[1738014924011,0.02838602,233.98,233.85,3.2]
[1738014924709,4.2759,233.93,233.85,7.4772]
[1738014925009,4.2759,233.93,233.85,3.2]
[1738014925210,0.03015386,233.91,233.87,0.02791468]
[1738014927516,0.03015386,233.91,233.76,16.88007084]
[1738014927904,4.2766,233.89,233.81,4.278]
[1738014928109,18.23367084,234.0,233.76,16.88007084]
[1738014928612,0.02806375,233.9,233.86,0.03163804]
[1738014928811,18.23367084,234.0,233.86,0.03163804]
[1738014929013,0.02875026,233.9,233.86,0.03163804]
[1738014929211,1.3883,233.99,233.86,0.03163804]
[1738014929406,4.2768,233.89,233.86,0.03163804]
[1738014930211,4.2768,233.88,233.86,0.03163804]
[1738014930613,0.03260744,233.9,233.86,0.03163804]
[1738014932116,1.3883,233.99,233.89,16.88007084]
[1738014932312,1.3883,233.99,233.86,0.03163804]
[1738014932615,4.2761,233.92,233.85,16.88007084]
[1738014933316,0.02920809,233.91,233.86,0.02953128]
[1738014936217,0.02920809,233.91,233.87,4.2769]
[1738014936516,43.54338627,234.08,233.89,16.88007084]
[1738014936719,2.7517,234.07,233.93,16.88007084]
[1738014937117,4.2741,234.03,233.93,16.88007084]
[1738014937318,2.7517,234.07,233.93,16.88007084]